Cogmind - Beta 16 @@@ ROGUE MODE // 2025.11.25 @ 21:33:54 Player: Vriska Result: Destroyed by as-98220 with Assembled Blade Performance ------------- Evolutions (0) 0 Regions Visited (2) 400 Robots Destroyed (13) 65 Value Destroyed (278) 278 Prototype IDs (0) 0 Alien Tech Used (0) 0 Bonus (0) 0 TOTAL SCORE: 743 Bonus ------- None Cogmind --------- Core Integrity 0/250 Matter 298/300 Energy 140/140 System Corruption 0% Temperature Cool (2) Movement Hovering (77) Location -10/Mines Parts ------- > --- POWER (1) -------- Light Deuterium Engine > --- PROPULSION (2) --- Combat Airjet Combat Airjet > --- UTILITY (2) ------ Signal Interpreter Seismic Detector > --- WEAPON (2) ------- Light Assault Rifle Light Assault Rifle > --- INVENTORY (5) ---- Terrain Scan Processor Launcher Guidance Computer Light Assault Rifle Bore Cannon Mining Laser Peak State ------------ > --- POWER ------------ Light Deuterium Engine > --- PROPULSION ------- Combat Airjet Combat Airjet > --- UTILITY ---------- Signal Interpreter Improved Terrain Scanner > --- WEAPON ----------- Light Assault Rifle Light Assault Rifle > --- INVENTORY -------- Light Ion Engine Light Ion Engine Launcher Guidance Computer Light Assault Rifle Mining Laser [Rating: 19] Favorites ----------- Power Light Deuterium Engine Engine Light Deuterium Engine Power Core Light Nuclear Core Propulsion Aluminum Leg Leg Aluminum Leg Hover Unit Combat Airjet Flight Unit Flight Unit Utility Signal Interpreter Device Seismic Detector Processor Signal Interpreter Weapon Light Assault Rifle Ballistic Gun Light Assault Rifle Build | -11 -10 -10 ------- Run | Yrd Mat Min Slots Evolved . | . . . Power . | . . . Propulsion . | . . . Utility . | . . . Weapon . | . . . Parts Attached 22 | 5 7 10 Power 4 | 1 1 2 Engine 3 | 1 1 1 Core 1 | . . 1 Reactor . | . . . Propulsion 9 | 2 3 4 Treads . | . . . Leg 4 | 2 . 2 Wheel . | . . . Hover 2 | . . 2 Flight 3 | . 3 . Utility 3 | . 1 2 Device 2 | . . 2 Storage . | . . . Processor 1 | . 1 . Hackware . | . . . Protection . | . . . Artifact . | . . . Weapon 6 | 2 2 2 Energy Gun . | . . . Energy Cannon . | . . . Ballistic Gun 6 | 2 2 2 Ballistic Cannon . | . . . Launcher . | . . . Special Weapon . | . . . Impact Weapon . | . . . Slashing Weapon . | . . . Piercing Weapon . | . . . Special Melee Weapon . | . . . Unidentified Prototypes . | . . . Parts Lost 3 | . 1 2 Power . | . . . Propulsion 3 | . 1 2 Utility . | . . . Weapon . | . . . Highest Loss Streak 2 | . 1 2 To Critical Strikes . | . . . Average Backups 3 | . 2 4 Power 1 | . 1 1 Propulsion . | . 1 . Utility . | . . . Weapon 1 | . . 1 Tool/Special . | . . . Unused Backups 8 | . 2 6 Power 3 | . 1 2 Propulsion 1 | . 1 . Utility 2 | . . 2 Weapon 2 | . . 2 Tool/Special . | . . . Average Slot Usage (%) 85 | . 77 90 Engine 10 | . 13 8 Core 3 | . . 5 Leg 14 | . 21 10 Hover 8 | . . 14 Flight 4 | . 6 2 Device 4 | . . 6 Processor 12 | . 9 14 Ballistic Gun 27 | . 27 27 Peak Build Rating 19 | 5 6 19 Average Rating 9 | 3 5 12 On Entrance 3 | . 5 6 Avg Prop Armor Cover (%) . | . . . Naked Turns . | . . . Heaviest Build 8 | 8 8 8 Greatest Support 24 | 20 20 24 Greatest Overweight (x) 1 | . . 1 Average Overweight (x) . | . . . Largest Inventory Capacity 5 | 5 5 5 Average Capacity 5 | 5 5 5 Most Carried 5 | 1 5 5 Average Carried 3 | . 2 4 Final Capacity 5 | 5 5 5 Final Carried 5 | 1 4 5 Class Distribution -------------------- 69% | Scavenger-Mutant 30% | Mutant Dominant Class ---------------- Mutant | -10/Materials Scavenger-Mutant | -10/Mines Resources | -11 -10 -10 ----------- Run | Yrd Mat Min Matter Collected 621 | 186 143 292 Remotely . | . . . Salvage Created 371 | . 220 151 Parts 28 | . 17 11 Haulers Intercepted . | . . . Recyclers Shooed . | . . . Parts Field Recycled . | . . . Retrieved Matter . | . . . Parts Self-Destructed . | . . . Prevented . | . . . Parts Restored . | . . . Kills | -11 -10 -10 ------- Run | Yrd Mat Min Combat Hostiles Destroyed 14 | . 7 7 Guns 14 | . 7 7 Classes Destroyed 4 | . 3 1 Worker 1 | . 1 . Swarmer 6 | . 3 3 Grunt 6 | . 4 2 Assembled 2 | . . 2 Best Kill Streak 4 | . 4 3 Combat Bots Only 3 | . 3 3 Max Kills in Single Turn 1 | . 1 1 Gunslinging . | . . . Exploded . | . . . Melee . | . . . Uniques/NPCs Destroyed . | . . . Combat | -11 -10 -10 -------- Run | Yrd Mat Min Hostile Shots Fired 92 | . 51 41 Missed 31 | . 19 12 Hits 61 | . 32 29 Melee 3 | . . 3 Projectile 58 | . 32 26 Damage Taken 698 | . 298 400 Core 266 | . 93 173 Absorbed by Shields . | . . . Core Remaining (%) 100 | 100 . . Volleys Fired 56 | . 24 32 Largest 2 | . 2 2 Hottest 40 | . 40 40 Shots Fired 112 | . 48 64 Gun 112 | . 48 64 Cannon . | . . . Launcher . | . . . Special . | . . . Kinetic 112 | . 48 64 Thermal . | . . . Explosive . | . . . Electromagnetic . | . . . Robot Hit Streak 16 | . 16 7 Robot Miss Streak 4 | . 4 3 Penetration Max . | . . . Secondary Targets 4 | . 2 2 Max Gunslinging Chain 1 | . 1 1 Shots Hit Robots 80 | . 35 45 Core Hits 30 | . 13 17 Critical Kills . | . . . Critical Parts Destroyed . | . . . Critical Strikes . | . . . Melee Attacks . | . . . Impact . | . . . Slashing . | . . . Piercing . | . . . Sneak Attacks . | . . . Combat Hostiles . | . . . Follow-up Attacks . | . . . Damage Inflicted 717 | . 342 375 Guns 717 | . 342 375 Cannons . | . . . Explosions . | . . . Melee . | . . . Ramming . | . . . Kinetic 717 | . 342 375 Thermal . | . . . Explosive . | . . . Electromagnetic . | . . . Impact . | . . . Slashing . | . . . Piercing . | . . . Highest Corruption . | . . . Average Corruption . | . . . Corruption Purged . | . . . Corruption Blocked . | . . . Overload Shots . | . . . Overflow Damage . | . . . Projectiles . | . . . Explosions . | . . . Melee . | . . . Knockbacks . | . . . Impact . | . . . Kinetic . | . . . Secondary . | . . . Self-Inflicted Damage . | . . . Shots . | . . . Rammed . | . . . Targets Rammed . | . . . Kicked . | . . . Crushed . | . . . Highest Temperature 56 | . 12 56 Average Temperature 14 | . 7 15 Received Heat Transfer 228 | . 72 156 Siege Activations . | . . . Martial Activations . | . . . Shielding Activations . | . . . Robots Disrupted . | . . . Combat Hostiles . | . . . Robots Corrupted . | . . . Combat Hostiles . | . . . Parts Fried . | . . . Impact Corruptions . | . . . Robots Melted . | . . . Combat Hostiles . | . . . Parts Melted . | . . . Heat Transferred . | . . . Parts Sabotaged . | . . . Parts Stolen . | . . . Parts Stripped . | . . . Power Chain Reactions . | . . . Alert | -11 -10 -10 ------- Run | Yrd Mat Min Maximum Alert Level . | . . . Low Security (%) 100 | 100 100 100 Level 1 . | . . . Level 2 . | . . . Level 3 . | . . . Level 4 . | . . . Level 5 . | . . . High Security . | . . . Max Security . | . . . Peak Influence 95 | . 95 72 Initial 27 | . . 27 Average 22 | . 25 22 Influence Increases 380 | . 204 176 Destroy 0b10 Robot/C 240 | . 140 100 Destroy 0b10 Robot/NC 5 | . 5 . Destroy Leader 60 | . 40 20 Successful Hack 15 | . 4 11 Partial Spotted 45 | . 15 30 Lose Combat Pursuer 15 | . . 15 Influence Decreases 380 | . 132 248 Entered New Map 45 | . . 45 Time Decay 305 | . 122 183 Lost Part 30 | . 10 20 Squads Dispatched 3 | . 3 . Investigation 2 | . 2 . Extermination . | . . . Reinforcement 1 | . 1 . Assault . | . . . Garrison . | . . . Intercept . | . . . Searches Triggered . | . . . Construction Impeded . | . . . Haulers Reinforced . | . . . Active Scanning Responses . | . . . Cargo Convoy Interrupts . | . . . Stealth | -11 -10 -10 --------- Run | Yrd Mat Min Distress Signals 1 | . 1 . Communications Jammed . | . . . Distress Signals . | . . . Times Spotted 17 | . 8 9 Peak Tracking Total 4 | . 4 3 Tactical Retreats 1 | . . 1 Traps | -11 -10 -10 ------- Run | Yrd Mat Min Traps Triggered 3 | . 3 . Indirectly . | . . . Trap Hack Attempts . | . . . Triggered . | . . . Disarmed . | . . . Reprogrammed . | . . . Reused . | . . . Traps Extracted . | . . . Installed . | . . . Triggered . | . . . Machines | -11 -10 -10 ---------- Run | Yrd Mat Min Machines Disabled . | . . . Max in Single Turn . | . . . Machines Repaired . | . . . Machines Dismantled . | . . . Machines Sabotaged . | . . . Overloaded Fab Kills . | . . . Hacking | -11 -10 -10 --------- Run | Yrd Mat Min Machines Accessed 5 | . 3 2 Terminals 3 | . 1 2 Fabricators . | . . . Repair Stations 1 | . 1 . Recycling Units 1 | . 1 . Scanalyzers . | . . . Garrison Access . | . . . Total Hacks 13 | . 8 5 Successful 5 | . 3 2 Failed 8 | . 5 3 Catastrophic 1 | . 1 . Database Lockouts . | . . . Manual . | . . . Terminals 8 | . 3 5 Fabricators . | . . . Repair Stations 1 | . 1 . Recycling Units 4 | . 4 . Scanalyzers . | . . . Garrison Access . | . . . Terminal Hacks 3 | . 1 2 Locate Traps 1 | . 1 . Dispatch Records 1 | . . 1 Assault Status 1 | . . 1 Fabricator Hacks . | . . . Repair Station Hacks 1 | . 1 . Scan Component 1 | . 1 . Recycling Unit Hacks 1 | . 1 . Report Inventory 1 | . 1 . Scanalyzer . | . . . Garrison Access Hacks . | . . . Unauthorized Hacks . | . . . Terminals . | . . . Fabricators . | . . . Repair Stations . | . . . Recycling Units . | . . . Scanalyzers . | . . . Garrison Access . | . . . Data Cores Recovered . | . . . Used . | . . . Hacking Detections 4 | . 2 2 Full Trace Events 2 | . 2 . Feedback Events . | . . . Feedback Blocked . | . . . Robot Schematics Acquired . | . . . Robots Built . | . . . Authchips . | . . . Time . | . . . Total Robot Build Rating . | . . . Part Schematics Acquired . | . . . Parts Built . | . . . Authchips . | . . . Time . | . . . Total Part Build Rating . | . . . Part Studies Acquired . | . . . Parts Repaired . | . . . Time . | . . . Parts Recycled . | . . . Recycled Matter . | . . . Retrieved Matter . | . . . Retrieved Components . | . . . Parts Scanalyzed . | . . . Part Schematics Acquired . | . . . Parts Damaged . | . . . Bothacking | -11 -10 -10 ------------ Run | Yrd Mat Min Used RIF Installer . | . . . Robots Hacked . | . . . Non-combat . | . . . Combat . | . . . Robot Hacks Applied . | . . . Relay Couplers Released . | . . . Fabnet Peak Effective % . | . . . Robots Rewired . | . . . Allies Hacked . | . . . Hacks Repelled . | . . . Allies | -11 -10 -10 -------- Run | Yrd Mat Min Total Allies . | . . . Largest Group . | . . . Highest-Rated Group . | . . . Highest-Rated Ally . | . . . Total Orders . | . . . Ally Attacks . | . . . Total Damage . | . . . Kills . | . . . Allies Corrupted . | . . . Allies Melted . | . . . Intel | -11 -10 -10 ------- Run | Yrd Mat Min Active Infowar (turns) 331 | . . 331 Terrain 152 | . . 152 Seismic 179 | . . 179 Robot Analysis Total . | . . . Derelict Logs Recovered 1 | . . 1 Drone Launches . | . . . Drone Recoveries . | . . . Exploration | -11 -10 -10 ------------- Run | Yrd Mat Min Turns Passed 1151 | 40 411 700 Spaces Moved 1023 | 29 366 628 Core 9 | 4 3 2 Treads . | . . . Legs 431 | 25 196 210 Wheels . | . . . Hover 375 | . . 375 Flight 208 | . 167 41 Fastest Speed 37 | 50 37 37 Average Speed 86 | 110 81 88 Slowest Speed 120 | 120 120 120 Overloaded Moves . | . . . Propulsion Burnouts . | . . . Robots Hopped . | . . . Potential Cave-ins . | . . . Cave-ins Triggered . | . . . Exploration Rate (%) 50 | 3 51 97 Regions Visited 2 Branch Regions 1 Pre-discovered Areas 1 | . . 1 Known Exits Taken 1 | . 1 . Unknown Exits Taken 1 | 1 . . Scrap Searched 1 | . . 1 Spaces Dug . | . . . Terrain Destroyed . | . . . Melee . | . . . Projectile . | . . . AOE . | . . . Terrain Rammed . | . . . Walls Destroyed . | . . . Machines Disabled . | . . . Actions | -11 -10 -10 --------- Run | Yrd Mat Min Total 1186 | 34 434 718 Wait 45 | . 12 33 Move 1021 | 28 365 628 Hop . | . . . Pick Up 14 | 1 9 4 Fast Attach 28 | 5 13 10 Attach 1 | . . 1 Detach . | . . . Swap . | . . . Drop 21 | . 11 10 Fire 56 | . 24 32 Melee . | . . . Ram . | . . . Kick . | . . . Crush . | . . . Escape Stasis . | . . . Rewire . | . . . Trap . | . . . Miscellaneous . | . . . Route ------- -11/Scrapyard -10/Materials (discovered 4 exits: *Mat x2 / *Min x2) -10/Mines (discovered 2 exits: *Mat x2) History --------- Turn | Location | Event 16 | -11/Scrapyard | Discovered new exit (range 16) 41 | -11/Scrapyard | Entered Materials 75 | -10/Materials | Discovered new exit (range 9) 231 | -10/Materials | Discovered new exit (range 6) 239 | -10/Materials | Identified exit to Mines 266 | -10/Materials | Discovered new exit (range 14) 281 | -10/Materials | Identified exit to Materials 315 | -10/Materials | Build established: Mutant 435 | -10/Materials | Discovered exit to Materials (range 8) 452 | -10/Materials | Entered Mines 510 | -10/Mines | Core integrity fell below 50% 603 | -10/Mines | Learned 2 Materials zone layouts 622 | -10/Mines | Assembled infested the area 627 | -10/Mines | Assisted by a Guerilla fighting off Assembled 841 | -10/Mines | Build established: Scavenger-Mutant 846 | -10/Mines | Discovered exit to Materials (range 9) 849 | -10/Mines | Learned location of Storage (-7) 902 | -10/Mines | Core integrity fell below 20% 981 | -10/Mines | Discovered exit to Materials (range 10) 1152 | -10/Mines | Destroyed by as-98220 with Assembled Blade Last Messages --------------- Acquired Lgt. Assault Rifle. Acquired 27 matter. Acquired 3 matter. Acquired 2 matter. as-58515 destroyed. Acquired 2 matter. K-01 Serf collects debris. Dropped Imp. Terrain Scanner. Acquired Seismic Detector. Acquired 10 matter. EXIT=FOUND: MATERIALS Destroyed Asb. Hover Unit. as-66499 destroyed. Acquired 9 matter. K-01 Serf collects debris. Acquired 1 matter. Dropped Lgt. Ion Engine. Acquired Terrain Scan Processor. Acquired Bore Cannon. Acquired 2 matter. Map ----- +----------------------------------------------------+ | """ #?????# """#?????# ######?# """ | | ####### #?#???# """#????## #??????# | | ####T#????## #?????# [ [ #???## ##?????# """ | | ???###?????# #?????# == #??## #?????# """ | | ???????????# #?????###%#######?# #?????# """ | | ???????????# #?????#?#=#???????# ##????# | | ??????#????# #???#???#=#????#?### ##???# | | ???????????# ##??????# #?#??#???### #???###### | | ??#####????# #?#?????# ###?#??????## #????????# | | ?## #???# #???????# #???#?????# #?#??????# | | ?# < #??# #???????### #?????????# ##???????# | | ?# #?# #????####?# #?#???????## ###????## | | ??# ## ###### ### #????????#?### ##???## | | ???# ## ###???????#??## #?#?# | | ???#### #???#???????## #???# | | ??????######### #### #??#??????### ###??## | | ??????????????## #??# #??????#### ##?????# | | ???????????#???# ##??# #???##### #??????#= | | ???????####????## ##???# ##### ##??????#% | | ??#???## ##????####?#??# ##??????##! | | ????### #????????????#######%### ##???#####! | | ???## #????#????#????????# #?#####?#?## =%|! | | ??## #???#####???????????# #?????????# !%* | | ?## #??### ###?#########%#?####????# *=| | | ?# #### ### ######=### ##??# =%# | | ?# # " ## @a=%%%%! #### !## | | ?# ###== %=*=#### # ## ##? | | ?## = =%!% *%## #? #??# ##?? | | ??## !%= !=[ ! ##### #??## # #??? | | ???## ! =!* = #???# #### #??? | | ????### *% # !%! ############ #??# #??? | | ??????## ##### # ####?# #### #### | | ???????# ### # ### ### ##### | | ???????## ######## # ## ## ##### """ | | ????????## # # = != """ | | ?????????## #####=##### =%*!%* """ | | ??????????## ##???#%#?#### =% ######= | | ???????????#########!#### ## ##????## ###### | | ??????????????# !%= ##??????# #??#" | | ??????????????# *% =* ##???????# #??!/ | | ??????????????# ########### #????????# ##??! | | ??????????????# #?????????## #???????## ##? | | ##????????????# #??????????## ##???????# ###+ | | ############## #???????????####????????# | | = #??????????????????????## | | %* [ #?????????????????????## | | ###############?????????????????????# ### | | #???????????????????????????????????# ##?# | | ##???????????????????????????????????# ##?# | | #????????????????????????????????????## #?# | +----------------------------------------------------+ Best States ------------- Heat Dissipation 25 Energy Generation 14 Energy Capacity 250 Matter Stores 300 Matter Capacity 300 Sight Range 16 Terrain Scan Range 16 Terrain Scan Density 10 Evasion (%) 62 Item Schematics ----------------- None Robot Schematics ------------------ None Fabricated ------------ Nothing Repaired ---------- Nothing Studied --------- None Alien Tech Used ----------------- None Achievements -------------- None Challenges ------------ None Game ------ Seed PointContainmentCleaver Manual? 0 Play Time 00:14:39 Cumulative 20.7 hours Start 2025.11.25 @ 21:19:20 End 2025.11.25 @ 21:33:54 Sessions 1 Manual Loads 0 Difficulty Rogue Special Mode None Game No. 41 Rogue 41 Adventurer 0 Explorer 0 Win Type - Total 0 Types 0/0/0/0/0/0/0/0/0/0 Lore% 14 Gallery% 20 Achievement% 15 Wizard Run 0 Options --------- Layout 0 ASCII 0 Keyboard 0 Movement Numpad Keybinds 0 Fullscreen 1 Font 18/SmallcapsGlow Map View 76x50 Zoom Use 0% Tactical HUD 0 Map Filters NONE Filters NONE Steam 1 RUN: 22a6fa44-970d-43e6-9037-f70cba429685